[Event "WSTCC-65 2024"]
[Site "Krakow"]
[Date "2024.07.05"]
[Round "4.7"]
[White "Hentunen, Asko"]
[Black "Moyses Sobrinho, Elias"]
[Result "1-0"]
[ECO "A10"]
[WhiteElo "2207"]
[BlackElo "1908"]
[Annotator "TA"]
[PlyCount "101"]
[EventDate "2024.07.01"]
[EventType "team-tourn"]
[EventCountry "POL"]
[SourceTitle "playchess.com"]
[Source "ChessBase"]
[SourceQuality "1"]
[TimeControl "40/5400+30:1800+30"]

{[%evp 15,101,41,36,0,0,0,0,0,0,0,37,51,26,39,58,73,145,143,140,124,111,109,118,120,121,120,118,114,121,118,131,131,131,115,108,101,104,102,104,116,111,101,112,110,120,112,141,138,161,132,155,153,170,165,178,143,180,182,196,183,212,212,263,197,199,193,200,190,274,267,327,259,267,260,345,325,368,355,4943,4139,1939,1747,29976,29977,29984,29985,29982,508]} 1. c4 {[%emt 0:00:05]} d5 {[%emt 0:00:23]} 2. cxd5 {[%emt 0:00:05]} Qxd5 {[%emt 0:00:09]} 3. Nc3 {[%emt 0:00:06]} Qd8 {[%emt 0:00:55]} 4. g3 {[%emt 0:00:09]} e5 {[%emt 0:00:13]} 5. Bg2 {[%emt 0:00:06]} Nf6 {[%emt 0:00:14]} 6. Nf3 {[%emt 0:00:04]} Nc6 {[%emt 0:00:12]} 7. O-O {[%emt 0:00:10]} Bc5 {[%emt 0:04:53]} 8. d3 {[%emt 0:02:53]} O-O {[%emt 0:00:34]} 9. Bd2 {[%emt 0:00:52]} h6 {[%emt 0:00:22]} 10. Rc1 {[%emt 0:00:09]} Be6 {[%emt 0:03:04]} 11. Na4 {[%emt 0:01:48] The position is equal.} Bd6 {[%emt 0:07:55]} 12. a3 {[%emt 0:01:43]} e4 {[%emt 0:06:14]} 13. dxe4 {[%emt 0:01:31]} Nxe4 {[%emt 0:10:13]} 14. Be3 $36 {[%emt 0:00:08][%mdl 2048] White fights for an advantage.} Qd7 {[%emt 0:06:55]} 15. Nd4 {[%emt 0:09:54]} f5 {[%emt 0:09:16]} (15... Nxd4 $142 16. Qxd4 (16. Bxe4 Nb3 $11) (16. Bxd4 f5 $14) 16... f5) 16. Nxc6 $16 {[%emt 0:03:43]} bxc6 {[%emt 0:00:34]} 17. Bxe4 {[%emt 0:01:29]} fxe4 {[%emt 0:00:19]} 18. Nc5 {[%emt 0:00:05]} Bxc5 {[%emt 0:01:30]} 19. Qxd7 {[%emt 0:00:08]} Bxd7 {[%emt 0:00:13]} 20. Rxc5 {[%emt 0:00:08]} Rf5 {[%emt 0:04:50]} 21. Rc4 {[%emt 0:01:25]} Rb5 {[%emt 0:01:51]} 22. b4 {[%emt 0:09:39]} Re5 {[%emt 0:01:37]} 23. Rd1 {[%emt 0:01:00]} Be8 {[%emt 0:01:25]} 24. Rdd4 {[%emt 0:00:27] White has more active pieces.} a5 {[%emt 0:00:55]} 25. Rxe4 {[%emt 0:02:33]} Rxe4 {[%emt 0:00:18]} 26. Rxe4 {[%emt 0:00:05]} axb4 {[%emt 0:00:08]} 27. axb4 {[%emt 0:02:14][%mdl 4096] Endgame. KRB-KRB} c5 {[%emt 0:00:16] [#] ...Ra1+ is the strong threat.} 28. f3 {[%emt 0:00:50]} (28. Bxc5 Bc6 29. f3 Bxe4 30. fxe4 Re8 $11) (28. bxc5 Ra1+ 29. Kg2 Bc6 $19) 28... cxb4 {[%emt 0:00:28]} 29. Rxb4 {[%emt 0:00:05]} Rc8 {[%emt 0:03:28]} 30. Kf2 {[%emt 0:01:09]} Bf7 {[%emt 0:00:26]} 31. Bc5 {[%emt 0:00:13]} c6 {[%emt 0:00:33]} 32. Rb7 {[%emt 0:01:34]} Rd8 {[%emt 0:01:58]} 33. h4 {[%emt 0:12:03]} Rd5 {[%emt 0:01:31]} 34. Be3 {[%emt 0:00:36]} h5 {[%emt 0:01:29]} 35. Rc7 {[%emt 0:00:22]} Rd6 {[%emt 0:01:41]} 36. Bf4 {[%emt 0:00:18]} Rf6 {[%emt 0:00:49]} 37. e4 {[%emt 0:00:42]} Bc4 {[%emt 0:00:29]} 38. Be5 {[%emt 0:01:49]} Rg6 {[%emt 0:00:36]} 39. Ke3 {[%emt 0:00:08]} Bf7 {[%emt 0:02:12]} 40. Rc8+ {[%emt 0:01:29]} Kh7 {[%emt 0:00:14]} 41. Kd4 {[%emt 0:30:20]} c5+ {[%emt 0:30:59]} (41... Bb3 {was worth a try.} 42. Rc7 Kg8) 42. Rxc5 $18 {[%emt 0:01:03]} ({Don't do} 42. Kxc5 Ra6 43. Rc7 Kg8 44. Rc8+ Kh7 $18) 42... Ra6 {[%emt 0:00:16]} 43. Ke3 {[%emt 0:00:19]} Ra7 {[%emt 0:01:50]} 44. f4 {[%emt 0:02:36]} Ra3+ {[%emt 0:00:34]} 45. Bc3 {[%emt 0:00:10]} Ra7 {[%emt 0:02:38]} 46. f5 {[%emt 0:00:43]} g6 $2 {[%emt 0:09:31]} (46... Bb3 47. e5 Re7) 47. Rc8 {[%emt 0:01:19][%csl Gc3][%cal Rc8h8] [#]} gxf5 {[%emt 0:00:43]} 48. exf5 {[%emt 0:00:08]} Bg8 {[%emt 0:00:29]} 49. Be5 {[%emt 0:00:40] White mates.} Ra4 {[%emt 0:03:18]} 50. Rc7+ {[%emt 0:00:22]} Kh6 51. Bf4+ {Weighted Error Value: White=0.08 (flawless) /Black=0.35.  Mistake:       	---       	Black=3      Inaccurate:     	---       	Black=2      OK:         	White=18    	Black=12     Best:        	White=3     	Black=2} (51. Bg7+ $142 Kh7 52. Bf6+ Bf7 53. Rxf7+ Kg8 54. Rg7+ Kf8 55. Rg5 Ke8 56. Be5 (56. Rxh5 Kd7 $18)) 1-0

[Event "WSTCC-65 2024"]
[Site "Krakow"]
[Date "2024.07.05"]
[Round "4.7"]
[White "Jorgensen, Arne Bjorn"]
[Black "Lange, Torsten"]
[Result "1/2-1/2"]
[ECO "A41"]
[WhiteElo "1940"]
[BlackElo "2027"]
[Annotator "NA RC"]
[PlyCount "31"]
[EventDate "2024.07.01"]
[EventType "team-tourn"]
[EventCountry "POL"]
[SourceTitle "playchess.com"]
[Source "ChessBase"]
[SourceQuality "1"]
[TimeControl "40/5400+30:1800+30"]

1. d4 {[%emt 0:00:02]} d6 {[%emt 0:00:07]} 2. Nf3 {[%emt 0:00:08]} Nc6 {[%emt 0:00:13]} 3. c4 {[%emt 0:00:42]} e5 {[%emt 0:00:38]} 4. dxe5 {[%emt 0:00:59]} dxe5 {[%emt 0:01:07]} 5. Qxd8+ {[%emt 0:00:42]} Kxd8 {[%emt 0:00:09]} 6. Nc3 {[%emt 0:01:00]} Be6 {[%emt 0:01:45]} 7. e3 {[%emt 0:01:14]} Bd6 {[%emt 0:04:25]} 8. Be2 {[%emt 0:00:37]} Nf6 {[%emt 0:00:36]} 9. O-O {[%emt 0:00:50]} Ke7 {[%emt 0:02:47]} 10. b3 {[%emt 0:00:44]} Rad8 {[%emt 0:04:37]} 11. Bb2 {[%emt 0:00:56]} a6 {[%emt 0:28:46]} 12. Rad1 {[%emt 0:01:05]} Bb4 {[%emt 0:00:38]} 13. Rxd8 {[%emt 0:04:03]} Rxd8 {[%emt 0:00:09]} 14. Rd1 {[%emt 0:00:06]} Rxd1+ {[%emt 0:01:07]} 15. Bxd1 {[%emt 0:00:38]} b6 {[%emt 0:07:58]} 16. h3 {[%emt 0:06:14]} 1/2-1/2

[Event "WSTCC-65 2024"]
[Site "Krakow"]
[Date "2024.07.05"]
[Round "4.8"]
[White "Roos, Jean-Luc"]
[Black "Lederman, Leon"]
[Result "1/2-1/2"]
[ECO "D43"]
[WhiteElo "2161"]
[BlackElo "2198"]
[Annotator "RC"]
[PlyCount "61"]
[EventDate "2024.07.01"]
[EventType "team-tourn"]
[EventCountry "POL"]
[SourceTitle "playchess.com"]
[Source "ChessBase"]
[SourceQuality "1"]
[TimeControl "40/5400+30:1800+30"]

1. d4 {[%emt 0:00:06]} d5 {[%emt 0:00:05]} 2. c4 {[%emt 0:00:08]} e6 {[%emt 0:00:15]} 3. Nf3 {[%emt 0:00:17]} Nf6 {[%emt 0:00:07]} 4. Nc3 {[%emt 0:00:23]} c6 {[%emt 0:00:06]} 5. Bg5 {[%emt 0:02:05]} h6 {[%emt 0:00:14]} 6. Bh4 {[%emt 0:01:09]} dxc4 {[%emt 0:00:12]} 7. e3 {[%emt 0:01:09]} b5 {[%emt 0:00:21]} 8. a4 {[%emt 0:00:48]} Bb4 {[%emt 0:00:07]} 9. Nd2 {[%emt 0:01:27]} Bb7 {[%emt 0:02:26]} 10. Be2 {[%emt 0:04:12]} Nbd7 {[%emt 0:11:36]} 11. O-O {[%emt 0:00:57]} a6 {[%emt 0:00:17]} 12. Qc2 {[%emt 0:10:37]} Be7 {[%emt 0:01:01]} 13. Bf3 {[%emt 0:10:25]} Nd5 {[%emt 0:03:16]} 14. Bg3 {[%emt 0:05:31]} O-O {[%emt 0:04:29]} 15. b3 {[%emt 0:02:27]} Nb4 {[%emt 0:06:59]} 16. Qb1 {[%emt 0:02:23]} cxb3 {[%emt 0:01:20]} 17. Nxb3 {[%emt 0:11:47]} Nd5 {[%emt 0:07:58]} 18. Ne4 {[%emt 0:01:53]} a5 {[%emt 0:04:16]} 19. Nd6 {[%emt 0:06:03]} Ba6 {[%emt 0:03:56]} 20. Rc1 {[%emt 0:04:02]} bxa4 {[%emt 0:04:49]} 21. Rxa4 {[%emt 0:03:09]} Bb5 {[%emt 0:00:09]} 22. Rxa5 {[%emt 0:01:21]} Rxa5 {[%emt 0:00:44]} 23. Nb7 {[%emt 0:00:09]} Qb6 {[%emt 0:00:46]} 24. N7xa5 {[%emt 0:08:19]} Qa6 {[%emt 0:00:41]} 25. Qc2 {[%emt 0:03:17]} Nb4 {[%emt 0:04:19]} 26. Qd2 {[%emt 0:02:19]} Rc8 {[%emt 0:01:58]} 27. Ra1 {[%emt 0:03:55]} Qb6 {[%emt 0:00:49]} 28. Nc1 {[%emt 0:03:44]} c5 {[%emt 0:03:28]} 29. dxc5 {[%emt 0:00:14]} Rxc5 {[%emt 0:00:23]} 30. Nab3 {[%emt 0:00:25]} Rc2 {[%emt 0:01:15]} 31. Qd4 {[%emt 0:01:02]} 1/2-1/2

[Event "WSTCC-65 2024"]
[Site "Krakow"]
[Date "2024.07.05"]
[Round "4.8"]
[White "Thoele, Wolfgang"]
[Black "Andersson, Finn"]
[Result "1/2-1/2"]
[ECO "B24"]
[WhiteElo "1890"]
[BlackElo "1824"]
[Annotator "NA RC"]
[PlyCount "30"]
[EventDate "2024.07.01"]
[EventType "team-tourn"]
[EventCountry "POL"]
[SourceTitle "playchess.com"]
[Source "ChessBase"]
[SourceQuality "1"]
[TimeControl "40/5400+30:1800+30"]

1. e4 {[%emt 0:00:02]} c5 {[%emt 0:00:06]} 2. Nc3 {[%emt 0:00:19]} Nc6 {[%emt 0:00:07]} 3. d3 {[%emt 0:00:16]} g6 {[%emt 0:00:31]} 4. g3 {[%emt 0:00:17]} Bg7 {[%emt 0:00:13]} 5. Bg2 {[%emt 0:00:02]} e6 {[%emt 0:02:21]} 6. Nf3 {[%emt 0:00:32]} Nge7 {[%emt 0:01:57]} 7. O-O {[%emt 0:00:14]} O-O {[%emt 0:00:24]} 8. Be3 {[%emt 0:00:47]} d6 {[%emt 0:06:24]} 9. Qd2 {[%emt 0:00:18]} Nd4 {[%emt 0:06:36]} 10. Bh6 {[%emt 0:09:55]} Nxf3+ {[%emt 0:00:53]} 11. Bxf3 {[%emt 0:00:15]} f5 {[%emt 0:14:05]} 12. Bxg7 {[%emt 0:04:38]} Kxg7 {[%emt 0:00:05]} 13. exf5 {[%emt 0:00:44]} Nxf5 {[%emt 0:04:42]} 14. Bg2 {[%emt 0:01:12]} Nd4 {[%emt 0:04:06]} 15. Ne2 {[%emt 0:07:23]} Nxe2+ 1/2-1/2

[Event "WSTCC-65 2024"]
[Site "Krakow"]
[Date "2024.07.05"]
[Round "4.8"]
[White "Vieira, Alexandre Letizio"]
[Black "Joentausta, Hannu"]
[Result "1/2-1/2"]
[ECO "B40"]
[WhiteElo "1825"]
[BlackElo "2102"]
[Annotator "NA RC"]
[PlyCount "51"]
[EventDate "2024.07.01"]
[EventType "team-tourn"]
[EventCountry "POL"]
[SourceTitle "playchess.com"]
[Source "ChessBase"]
[SourceQuality "1"]
[TimeControl "40/5400+30:1800+30"]

1. e4 {[%emt 0:00:06]} c5 {[%emt 0:00:06]} 2. Nf3 {[%emt 0:00:05]} e6 {[%emt 0:00:06]} 3. d3 {[%emt 0:00:05]} Nc6 {[%emt 0:00:16]} 4. g3 {[%emt 0:00:05]} g6 {[%emt 0:00:12]} 5. Bg2 {[%emt 0:00:06]} Bg7 {[%emt 0:00:07]} 6. O-O {[%emt 0:00:33]} Nge7 {[%emt 0:00:23]} 7. Nc3 {[%emt 0:01:19]} O-O {[%emt 0:02:49]} 8. a4 {[%emt 0:05:55]} d6 {[%emt 0:06:12]} 9. Bf4 {[%emt 0:01:50]} Nd4 {[%emt 0:04:08]} 10. Nxd4 {[%emt 0:05:09]} cxd4 {[%emt 0:00:16]} 11. Nb5 {[%emt 0:01:39]} e5 {[%emt 0:00:14]} 12. Bg5 {[%emt 0:00:54]} f6 {[%emt 0:04:22]} 13. Bd2 {[%emt 0:00:22]} a6 {[%emt 0:00:44]} 14. Na3 {[%emt 0:00:06]} Be6 {[%emt 0:00:23]} 15. c4 {[%emt 0:01:42]} dxc3 {[%emt 0:03:30]} 16. Bxc3 {[%emt 0:01:55]} Rc8 {[%emt 0:28:13]} 17. Rc1 {[%emt 0:03:36]} Kh8 {[%emt 0:06:30]} 18. d4 {[%emt 0:01:49]} exd4 {[%emt 0:01:36]} 19. Bxd4 {[%emt 0:00:27]} Rxc1 {[%emt 0:00:49]} 20. Qxc1 {[%emt 0:00:12]} Nc6 {[%emt 0:00:17]} 21. Bc3 {[%emt 0:00:34]} Bb3 {[%emt 0:04:12]} 22. Qd2 {[%emt 0:00:47]} Qe7 {[%emt 0:01:56]} 23. a5 {[%emt 0:00:30]} Rd8 {[%emt 0:01:59]} 24. Re1 {[%emt 0:00:19]} Qe6 {[%emt 0:04:58]} 25. Nc2 {[%emt 0:00:49]} Qe7 {[%emt 0:09:12]} 26. Nd4 {[%emt 0:04:03]} 1/2-1/2

[Event "WSTCC-65 2024"]
[Site "Krakow"]
[Date "2024.07.05"]
[Round "4.9"]
[White "Renman, Nils-Gustaf"]
[Black "Garcia Palermo, Carlos Horacio"]
[Result "1/2-1/2"]
[ECO "E11"]
[WhiteElo "2314"]
[BlackElo "2419"]
[Annotator "TA"]
[PlyCount "67"]
[EventDate "2024.07.01"]
[EventType "team-tourn"]
[EventCountry "POL"]
[SourceTitle "playchess.com"]
[Source "ChessBase"]
[SourceQuality "1"]
[TimeControl "40/5400+30:1800+30"]

{[%evp 11,67,8,14,18,29,22,37,23,34,36,34,34,33,23,31,30,28,35,37,28,24,17,47,7,28,22,28,46,47,18,58,26,18,0,42,39,37,28,37,37,51,64,110,58,114,116,114,121,115,104,103,100,105,115,126,113,119,12]} 1. d4 {[%emt 0:00:02]} Nf6 {[%emt 0:00:15]} 2. c4 {[%emt 0:00:15]} e6 {[%emt 0:00:15]} 3. Nf3 {[%emt 0:00:06]} Bb4+ {[%emt 0:00:41]} 4. Nbd2 {[%emt 0:00:54]} O-O {[%emt 0:00:35]} 5. a3 {[%emt 0:01:47]} Be7 {[%emt 0:00:09]} 6. e3 {[%emt 0:02:22]} c5 {[%emt 0:06:38]} 7. dxc5 {[%emt 0:00:37]} a5 {[%emt 0:00:18]} 8. b3 {[%emt 0:01:10]} Bxc5 {[%emt 0:00:17]} 9. Bb2 {[%emt 0:00:32] White is slightly better.} d6 {[%emt 0:11:20]} 10. Bd3 {[%emt 0:04:11]} e5 {[%emt 0:03:08]} 11. Qc2 {[%emt 0:01:26]} Nc6 {[%emt 0:01:45]} 12. O-O {[%emt 0:04:08]} h6 {[%emt 0:02:24]} 13. Rfd1 {[%emt 0:09:03]} Qe7 {[%emt 0:01:39]} 14. h3 {[%emt 0:08:23]} Bd7 {[%emt 0:12:19]} 15. Bf5 {[%emt 0:05:50]} Bxf5 {[%emt 0:13:51]} 16. Qxf5 {[%emt 0:00:03]} Rab8 {[%emt 0:00:30]} 17. Ne4 {[%emt 0:03:01]} Nxe4 {[%emt 0:00:18]} 18. Qxe4 {[%emt 0:00:03]} f5 {[%emt 0:00:31]} 19. Qd5+ {[%emt 0:04:47]} Kh7 {[%emt 0:04:19]} 20. Bc3 {[%emt 0:01:03]} Ra8 {[%emt 0:06:56]} 21. Qd2 {[%emt 0:02:16]} e4 {[%emt 0:01:46]} 22. Ne1 {[%emt 0:14:43]} Rad8 {[%emt 0:17:25][%cal Of5f4]} 23. b4 {[%emt 0:02:49]} (23. Bxa5 Nxa5 24. Qxa5 f4 $17) 23... axb4 {[%emt 0:00:26]} 24. axb4 {[%emt 0:00:07]} Bb6 {[%emt 0:00:06][%cal Of5f4]} 25. Nc2 {[%emt 0:01:27]} Ne5 {[%emt 0:11:38]} 26. Bxe5 {[%emt 0:09:16]} Qxe5 {[%emt 0:00:25]} (26... dxe5 $14 {is more appropriate.} 27. Qe2 Rxd1+ 28. Rxd1 Bd8) 27. Qd5 {[%emt 0:00:37]} (27. g3 $16) 27... Qe7 {[%emt 0:00:29]} (27... f4 $14) 28. Nd4 $36 {[%emt 0:00:37][%mdl 2048] White is on the roll. White is better.} Bxd4 {[%emt 0:02:28]} 29. Rxd4 {[%emt 0:00:14]} ({Weaker is} 29. exd4 Qf7 $15) 29... Rc8 {[%emt 0:00:38]} 30. Ra7 {[%emt 0:05:17]} (30. Qxd6 Qxd6 31. Rxd6 Rxc4 $14) 30... Rf7 {[%emt 0:00:42]} 31. h4 {[%emt 0:07:24]} (31. Qxd6 Qxd6 32. Rxd6 Rxc4 $14) 31... Rc7 {[%emt 0:00:50]} 32. g3 {[%emt 0:00:39]} ({Don't play} 32. Qxd6 Rxc4 33. Qxe7 Rc1+ 34. Kh2 Rxe7 $14) 32... h5 {[%emt 0:00:46]} 33. Ra8 {[%emt 0:01:55] White is much more active.} ({Don't do} 33. Qxd6 $6 Qxd6 34. Rxd6 Rxc4 $11) 33... Qe5 {[%emt 0:00:22]} 34. Qxd6 {[%emt 0:09:10] Weighted Error Value: White=0.10 (very precise) /Black=0.11 (very precise) .  Mistake:       	White=2     	Black=2      Inaccurate:     	White=3     	Black=3      OK:         	White=6     	Black=7      Best:        	White=1     	Black=2} (34. Qa5 $16) 1/2-1/2

[Event "WSTCC-65 2024"]
[Site "Krakow"]
[Date "2024.07.05"]
[Round "4.9"]
[White "Varley, Peter"]
[Black "Wallace, John Paul"]
[Result "0-1"]
[ECO "A67"]
[WhiteElo "2140"]
[BlackElo "2369"]
[Annotator "TA"]
[PlyCount "88"]
[EventDate "2024.07.01"]
[EventType "team-tourn"]
[EventCountry "POL"]
[SourceTitle "playchess.com"]
[Source "ChessBase"]
[SourceQuality "1"]
[TimeControl "40/5400+30:1800+30"]

{[%evp 22,88,41,2,34,0,16,29,13,12,11,-28,25,37,76,0,-9,0,17,22,82,74,79,81,81,0,0,0,0,0,0,0,0,0,0,0,77,33,81,76,50,0,0,-116,-91,-270,-275,-276,-299,-296,-280,-445,-423,-401,-397,-375,0,-187,0,-402,-388,-5310,-5214,-29987,-29988,-29991,-29992,-29992,-29993]} 1. d4 {[%emt 0:00:06]} Nf6 {[%emt 0:00:10]} 2. c4 {[%emt 0:00:06]} c5 {[%emt 0:00:05]} 3. d5 {[%emt 0:00:05]} e6 {[%emt 0:00:07]} 4. Nc3 {[%emt 0:00:10]} exd5 {[%emt 0:00:06]} 5. cxd5 {[%emt 0:00:20]} d6 {[%emt 0:00:07]} 6. e4 {[%emt 0:00:08]} g6 {[%emt 0:00:06]} 7. f4 {[%emt 0:00:10]} Bg7 {[%emt 0:00:06]} 8. Bb5+ {[%emt 0:00:06]} Nfd7 {[%emt 0:00:06]} 9. a4 {[%emt 0:00:19]} O-O {[%emt 0:00:09]} 10. Nf3 {[%emt 0:00:31]} Na6 {[%emt 0:00:33]} 11. O-O {[%emt 0:00:24]} Nb4 {[%emt 0:01:01]} 12. Be3 {[%emt 0:04:46]} a6 {[%emt 0:03:17]} (12... Nf6 $5) 13. Bc4 {[%emt 0:00:45]} Nb6 {[%emt 0:25:32]} 14. Be2 {[%emt 0:00:14][%cal Bc4e2,Be2f3,Bf3g4][%mdl 32]} Bg4 {[%emt 0:00:20] White has an edge.} 15. Qd2 {[%emt 0:07:01]} Re8 {[%emt 0:03:53]} 16. Rad1 {[%emt 0:05:03][%cal Of4f5]} Bxf3 {[%emt 0:11:10]} ({Better is} 16... Bxc3 $1 17. bxc3 N4xd5 18. exd5 Qe7 19. Bxc5 (19. Kf2 $2 Bxf3 20. gxf3 Nxd5 $17) 19... dxc5) 17. Rxf3 $11 {[%emt 0:00:26]} Nd7 {[%emt 0:01:16]} 18. Rh3 {[%emt 0:04:38]} ({White should try} 18. f5 $16) 18... Nf6 {[%emt 0:08:20]} 19. Bf3 {[%emt 0:01:47]} Rc8 {[%emt 0:01:07]} 20. f5 {[%emt 0:04:47]} Nd7 {[%emt 0:07:32]} (20... c4 $11) 21. fxg6 $16 {[%emt 0:05:44]} hxg6 {[%emt 0:00:17]} 22. Bg4 {[%emt 0:00:26] Hoping for Bg5.} Rc7 {[%emt 0:01:49]} 23. Bh6 {[%emt 0:10:52]} (23. Rf1 $16) 23... Qf6 $11 {[%emt 0:01:54]} 24. Bxg7 {[%emt 0:09:03]} Qxg7 {[%emt 0:00:11]} 25. Bxd7 {[%emt 0:00:11]} Rxd7 {[%emt 0:00:07]} 26. Rf3 {[%emt 0:00:57]} c4 {[%emt 0:09:47]} 27. Rdf1 {[%emt 0:03:03]} Nd3 {[%emt 0:02:59][%cal Ob7b5]} 28. Rf6 {[%emt 0:00:43]} Rb8 {[%emt 0:04:43]} (28... Qh8 $11 {keeps the balance.}) 29. h3 {[%emt 0:04:59][%cal Oe4e5]} b5 {[%emt 0:00:26]} (29... Re8 $14) 30. axb5 $16 {[%emt 0:00:40]} axb5 {[%emt 0:00:07]} 31. Ne2 {[%emt 0:01:40]} (31. e5 $1 $14 Nxe5 32. Ne4) 31... Ra8 $11 {[%emt 0:03:37][%cal Oa8a1]} 32. Nc1 {[%emt 0:04:18]} (32. Qg5 $11) 32... Nc5 $17 {[%emt 0:05:01] Black is more active.} 33. Qf4 {[%emt 0:00:33]} (33. e5 $17 Ne4 (33... dxe5 34. Qe3 $11) 34. Qf4 Nxf6 35. exf6) 33... Re8 $19 {[%emt 0:01:28]} 34. Rxd6 {[%emt 0:05:08]} Rxd6 {[%emt 0:06:19]} ({Don't take} 34... Rxe4 35. Qf6 $19) 35. Qxd6 {[%emt 0:00:07]} Nxe4 {[%emt 0:00:16]} 36. Qd7 {[%emt 0:02:22]} (36. Qf4 {was forced.}) 36... Qd4+ {[%emt 0:00:28]} 37. Kh2 {[%emt 0:00:28]} Qe5+ {[%emt 0:00:22]} 38. Kg1 {[%emt 0:00:07]} Qd4+ {[%emt 0:00:23]} (38... Re7 $142 39. Qd8+ Kg7) 39. Kh2 {[%emt 0:00:06] [#]} Qe5+ {[%emt 0:00:03]} (39... Rf8 $1 {aiming for ...Nd2.} 40. Qe7 Qxd5) 40. Kg1 {[%emt 0:00:09]} Re7 {[%emt 0:04:12]} 41. Qxb5 {[%emt 0:34:38] [#]} (41. Qd8+ Kg7 42. d6 Nxd6 43. b4) 41... Nd2 $1 {[%emt 0:02:53]} ({Not} 41... Ng3 42. Rd1 $17) 42. Rd1 {[%emt 0:00:00] [#]} Nf3+ $1 {[%emt 0:02:46][%mdl 512] Black mates.} 43. Kf1 {[%emt 0:00:00] [#]} (43. Kf2 Qe3+) 43... Qe3 $1 {[%emt 0:00:30][%cal Rf3h2]} 44. Qb8+ {[%emt 0:00:00]} Kg7 {[%emt 0:01:16] Weighted Error Value: White=0.61/Black=0.41.  Loses game:     	White=1     	---        Mistake:       	White=6     	Black=6      Inaccurate:     	White=4     	---        OK:         	White=8     	Black=9      Best:        	White=4     	Black=5      Strong:       	---       	Black=1} (44... Re8 45. Qxe8+ Qxe8 46. gxf3 $17) 0-1

[Event "WSTCC-65 2024"]
[Site "Krakow"]
[Date "2024.07.05"]
[Round "4.9"]
[White "Quinn, John M"]
[Black "Meulders, Richard"]
[Result "1/2-1/2"]
[ECO "E34"]
[WhiteElo "2073"]
[BlackElo "2154"]
[Annotator "RC"]
[PlyCount "34"]
[EventDate "2024.07.01"]
[EventType "team-tourn"]
[EventCountry "POL"]
[SourceTitle "playchess.com"]
[Source "ChessBase"]
[SourceQuality "1"]
[TimeControl "40/5400+30:1800+30"]

1. d4 {[%emt 0:00:03]} Nf6 {[%emt 0:00:13]} 2. c4 {[%emt 0:00:06]} e6 {[%emt 0:00:17]} 3. Nc3 {[%emt 0:00:06]} Bb4 {[%emt 0:00:37]} 4. Qc2 {[%emt 0:00:06]} d5 {[%emt 0:01:04]} 5. cxd5 {[%emt 0:01:43]} Qxd5 {[%emt 0:01:00]} 6. Nf3 {[%emt 0:02:19]} Qf5 {[%emt 0:00:53]} 7. Qxf5 {[%emt 0:04:36]} exf5 {[%emt 0:00:06]} 8. a3 {[%emt 0:00:14]} Bd6 {[%emt 0:02:44]} 9. Nb5 {[%emt 0:02:45]} Be6 {[%emt 0:12:06]} 10. e3 {[%emt 0:13:26]} Nc6 {[%emt 0:04:23]} 11. Bd3 {[%emt 0:03:38]} a6 {[%emt 0:08:04]} 12. Nxd6+ {[%emt 0:08:36]} cxd6 {[%emt 0:00:08]} 13. O-O {[%emt 0:06:03]} O-O {[%emt 0:12:29]} 14. Bd2 {[%emt 0:04:26]} Ne4 {[%emt 0:00:49]} 15. Rfc1 {[%emt 0:00:37]} Rac8 {[%emt 0:03:32]} 16. Be1 {[%emt 0:02:09]} g6 {[%emt 0:00:24]} 17. b4 {[%emt 0:05:55]} Ne7 {[%emt 0:04:25]} 1/2-1/2